Cogmind - Beta 12 @@@ ROGUE MODE // 2023.04.27 @ 00:02:43 Player: Dytto Result: Destroyed by L-41 Fighter with Axe Performance ------------- Evolutions (1) 500 Regions Visited (6) 1200 Robots Destroyed (8) 40 Value Destroyed (221) 221 Prototype IDs (0) 0 Alien Tech Used (0) 0 Bonus (760) 760 TOTAL SCORE: 2721 Bonus ------- Follower Combat Kills 160 Met Imprinter 300 Was Imprinted 300 Cogmind --------- Core Integrity 0/400 Matter 300/300 Energy 100/100 System Corruption 0% Temperature Cool (0) Movement Core (50) Location -6/Proximity Caves Parts ------- > --- POWER (1) -------- (None) > --- PROPULSION (2) --- (None) > --- UTILITY (4) ------ Corruption Screen > --- WEAPON (2) ------- CR-A16's Pointy Stick > --- INVENTORY (5) ---- Light Ion Engine Power Shielding Autogun Grenade Launcher Peak State ------------ > --- POWER ------------ Improved Ion Engine > --- PROPULSION ------- Aluminum Leg Aluminum Leg > --- UTILITY ---------- Improved Heat Sink Large Battery Improved Light Armor Plating Corruption Screen > --- WEAPON ----------- Heavy Beamcaster CR-A16's Pointy Stick > --- INVENTORY -------- Light Ion Engine Power Shielding Autogun Grenade Launcher [Rating: 25] Favorites ----------- Power Improved Ion Engine Engine Improved Ion Engine Propulsion Aluminum Leg Leg Aluminum Leg Wheel Compact Wheel Utility Large Battery Device Improved Heat Sink Storage Large Battery Processor Corruption Screen Protection Improved Light Armor Plating Weapon CR-A16's Pointy Stick Energy Gun Heavy Beamcaster Ballistic Gun Assault Rifle Piercing Weapon CR-A16's Pointy Stick Special Melee Weapon Improved Datajack Build | -11 -10 -10 -9 -9 -7 -6 ------- Run | Jun Mat Min Mat Min Zio Pro Slots Evolved 2 | . . . 2 . . . Power . | . . . . . . . Propulsion . | . . . . . . . Utility 2 | . . . 2 . . . Weapon . | . . . . . . . Parts Attached 29 | 5 6 3 9 1 5 . Power 4 | 1 . 1 1 . 1 . Engine 4 | 1 . 1 1 . 1 . Core . | . . . . . . . Reactor . | . . . . . . . Propulsion 8 | 2 3 2 1 . . . Treads . | . . . . . . . Leg 6 | 2 1 2 1 . . . Wheel 2 | . 2 . . . . . Hover . | . . . . . . . Flight . | . . . . . . . Utility 10 | . 3 . 4 1 2 . Device 4 | . 1 . 2 1 . . Storage 2 | . 1 . 1 . . . Processor 2 | . 1 . . . 1 . Hackware . | . . . . . . . Protection 2 | . . . 1 . 1 . Artifact . | . . . . . . . Weapon 7 | 2 . . 3 . 2 . Energy Gun 2 | 1 . . . . 1 . Energy Cannon . | . . . . . . . Ballistic Gun 3 | 1 . . 2 . . . Ballistic Cannon . | . . . . . . . Launcher . | . . . . . . . Special Weapon . | . . . . . . . Impact Weapon . | . . . . . . . Slashing Weapon . | . . . . . . . Piercing Weapon 1 | . . . . . 1 . Special Melee Weapon 1 | . . . 1 . . . Unidentified Prototypes . | . . . . . . . Parts Lost 8 | . . . 1 . . 7 Power 2 | . . . 1 . . 1 Propulsion 2 | . . . . . . 2 Utility 3 | . . . . . . 3 Weapon 1 | . . . . . . 1 Highest Loss Streak 7 | . . . 1 . . 7 To Critical Strikes . | . . . . . . . Average Slot Usage (%) 97 | . 95 99 85 100 99 98 Engine 11 | . 14 14 11 11 11 10 Leg 21 | . 13 26 22 22 22 21 Wheel 1 | . 14 1 . . . . Device 10 | . 3 . 11 22 11 11 Storage 10 | . 6 14 10 11 11 11 Processor 11 | . 14 14 11 11 11 11 Protection 7 | . . . 3 . 10 10 Energy Gun 8 | . 14 14 1 . 8 10 Ballistic Gun 5 | . 14 14 11 22 4 . Piercing Weapon 7 | . . . . . 9 11 Naked Turns . | . . . . . . . Heaviest Build 22 | 7 10 10 17 15 22 22 Greatest Support 32 | 20 32 32 26 26 26 20 Greatest Overweight (x) 2 | . . . . . 1 2 Average Overweight (x) . | . . . . . . 1 Largest Inventory Capacity 5 | 5 5 5 5 5 5 5 Average Capacity 5 | 5 5 5 5 5 5 5 Most Carried 5 | 3 5 5 5 5 5 4 Average Carried 4 | 1 3 3 3 4 4 4 Final Capacity 5 | 5 5 5 5 5 5 5 Final Carried 5 | 3 5 4 4 5 4 4 Class Distribution -------------------- 100% | Mutant Dominant Class ---------------- Mutant | -10/Materials Mutant | -10/Mines Mutant | -9/Materials Mutant | -9/Mines Mutant | -7/Zion Mutant | -6/Proximity Caves Resources | -11 -10 -10 -9 -9 -7 -6 ----------- Run | Jun Mat Min Mat Min Zio Pro Matter Collected 556 | 242 10 65 153 . 86 . Remotely . | . . . . . . . Salvage Created 291 | . 64 19 208 . . . Parts 26 | . 8 1 17 . . . Haulers Intercepted . | . . . . . . . Recyclers Shooed 1 | . 1 . . . . . Parts Field Recycled . | . . . . . . . Retrieved Matter . | . . . . . . . Parts Self-Destructed 9 | . . . . . 3 6 Prevented . | . . . . . . . Kills | -11 -10 -10 -9 -9 -7 -6 ------- Run | Jun Mat Min Mat Min Zio Pro Combat Hostiles Destroyed 8 | . 3 1 4 . . . Guns 6 | . 1 1 4 . . . AOE 2 | . 2 . . . . . Classes Destroyed 3 | . 1 . 2 . . . Swarmer 4 | . 3 1 . . . . Grunt 2 | . . . 2 . . . Sentry 2 | . . . 2 . . . Best Kill Streak 3 | . 3 1 3 . . . Combat Bots Only 3 | . 3 1 3 . . . Max Kills in Single Turn 2 | . 2 1 1 . . . Gunslinging . | . . . . . . . Exploded 2 | . 2 . . . . . Melee . | . . . . . . . Uniques/NPCs Destroyed . | . . . . . . . Combat | -11 -10 -10 -9 -9 -7 -6 -------- Run | Jun Mat Min Mat Min Zio Pro Damage Taken 1487 | . 115 87 404 . . 881 Core 515 | . 48 39 35 . . 393 Absorbed by Shields . | . . . . . . . Regen/Repaired (Parts) 68 | . . . 13 . 55 . Core Remaining (%) 82 | 100 . 65 . . . . Volleys Fired 30 | . 3 3 19 . . 5 Largest 2 | . 2 2 2 . . 1 Hottest 81 | . 60 60 46 . . 81 Shots Fired 37 | . 6 6 20 . . 5 Gun 37 | . 6 6 20 . . 5 Cannon . | . . . . . . . Launcher . | . . . . . . . Special . | . . . . . . . Kinetic 26 | . 3 3 20 . . . Thermal 5 | . . . . . . 5 Explosive . | . . . . . . . Electromagnetic 6 | . 3 3 . . . . Robot Hit Streak 6 | . 1 1 6 . . 3 Robot Miss Streak 3 | . 2 3 3 . . 2 Penetration Max . | . . . . . . . Secondary Targets . | . . . . . . . Shots Hit Robots 28 | . 2 2 16 . . 8 Core Hits 12 | . 3 1 8 . . . Critical Kills . | . . . . . . . Critical Parts Destroyed . | . . . . . . . Critical Strikes . | . . . . . . . Melee Attacks 16 | . . . 4 . . 12 Impact . | . . . . . . . Slashing . | . . . . . . . Piercing 12 | . . . . . . 12 Sneak Attacks 1 | . . . . . . 1 Combat Hostiles 1 | . . . . . . 1 Follow-up Attacks . | . . . . . . . Damage Inflicted 512 | . 77 23 178 . . 234 Guns 292 | . 22 23 178 . . 69 Cannons . | . . . . . . . Explosions 52 | . 52 . . . . . Melee 165 | . . . . . . 165 Ramming 3 | . 3 . . . . . Kinetic 213 | . 12 23 178 . . . Thermal 121 | . 52 . . . . 69 Explosive . | . . . . . . . Electromagnetic 10 | . 10 . . . . . Impact . | . . . . . . . Slashing . | . . . . . . . Piercing 165 | . . . . . . 165 Highest Corruption . | . . . . . . . Average Corruption . | . . . . . . . Corruption Purged . | . . . . . . . Corruption Blocked . | . . . . . . . Overload Shots . | . . . . . . . Overflow Damage 10 | . . . . . . 10 Projectiles . | . . . . . . . Explosions . | . . . . . . . Melee 10 | . . . . . . 10 Knockbacks . | . . . . . . . Impact . | . . . . . . . Kinetic . | . . . . . . . Secondary . | . . . . . . . Self-Inflicted Damage 1 | . 1 . . . . . Shots . | . . . . . . . Rammed 3 | . 3 . . . . . Targets Rammed 3 | . 3 . . . . . Kicked . | . . . . . . . Crushed . | . . . . . . . Highest Temperature 60 | . . . 4 . . 60 Average Temperature 26 | . . . 3 . . 32 Received Heat Transfer 329 | . 36 . 195 . . 98 Siege Activations . | . . . . . . . Robots Corrupted . | . . . . . . . Combat Hostiles . | . . . . . . . Parts Fried . | . . . . . . . Impact Corruptions . | . . . . . . . Robots Melted . | . . . . . . . Combat Hostiles . | . . . . . . . Parts Melted . | . . . . . . . Heat Transferred 211 | . 100 . . . . 111 Parts Sabotaged . | . . . . . . . Parts Stolen . | . . . . . . . Parts Stripped . | . . . . . . . Power Chain Reactions 1 | . 1 . . . . . Missiles Intercepted . | . . . . . . . Alert | -11 -10 -10 -9 -9 -7 -6 ------- Run | Jun Mat Min Mat Min Zio Pro Peak Influence 125 | . 85 53 125 11 . . Initial 33 | . . 33 . 11 . . Average 18 | . 8 35 13 11 . . Maximum Alert Level . | . . . . . . . Low Security (%) 100 | 100 100 100 100 100 . . Level 1 . | . . . . . . . Level 2 . | . . . . . . . Level 3 . | . . . . . . . Level 4 . | . . . . . . . Level 5 . | . . . . . . . High Security . | . . . . . . . Max Security . | . . . . . . . Squads Dispatched 1 | . . . . . . 1 Investigation . | . . . . . . . Extermination . | . . . . . . . Reinforcement . | . . . . . . . Assault 1 | . . . . . . 1 Garrison . | . . . . . . . Intercept . | . . . . . . . Searches Triggered . | . . . . . . . Construction Impeded . | . . . . . . . Haulers Reinforced . | . . . . . . . Active Scanning Responses . | . . . . . . . Cargo Convoy Interrupts . | . . . . . . . Stealth | -11 -10 -10 -9 -9 -7 -6 --------- Run | Jun Mat Min Mat Min Zio Pro Distress Signals 1 | . 1 . . . . . Communications Jammed . | . . . . . . . Distress Signals . | . . . . . . . Times Spotted 38 | . 10 4 5 . . 19 Peak Tracking Total 12 | . 7 3 3 . . 12 Tactical Retreats 2 | . . . 1 . . 1 Traps | -11 -10 -10 -9 -9 -7 -6 ------- Run | Jun Mat Min Mat Min Zio Pro Traps Triggered . | . . . . . . . Indirectly . | . . . . . . . Trap Hack Attempts . | . . . . . . . Triggered . | . . . . . . . Disarmed . | . . . . . . . Reprogrammed . | . . . . . . . Reused . | . . . . . . . Traps Extracted . | . . . . . . . Installed . | . . . . . . . Triggered . | . . . . . . . Machines | -11 -10 -10 -9 -9 -7 -6 ---------- Run | Jun Mat Min Mat Min Zio Pro Machines Disabled 1 | . 1 . . . . . Max in Single Turn 1 | . 1 . . . . . Machines Repaired . | . . . . . . . Machines Sabotaged . | . . . . . . . Overloaded Fab Kills . | . . . . . . . Hacking | -11 -10 -10 -9 -9 -7 -6 --------- Run | Jun Mat Min Mat Min Zio Pro Machines Accessed 5 | . 2 . 3 . . . Terminals 4 | . 2 . 2 . . . Fabricators . | . . . . . . . Repair Stations 1 | . . . 1 . . . Recycling Units . | . . . . . . . Scanalyzers . | . . . . . . . Garrison Access . | . . . . . . . Total Hacks 9 | . 5 . 4 . . . Successful 4 | . 2 . 2 . . . Failed 5 | . 3 . 2 . . . Catastrophic 2 | . 1 . 1 . . . Database Lockouts . | . . . . . . . Manual 6 | . 3 . 2 . 1 . Terminals 7 | . 5 . 2 . . . Fabricators . | . . . . . . . Repair Stations 2 | . . . 2 . . . Recycling Units . | . . . . . . . Scanalyzers . | . . . . . . . Garrison Access . | . . . . . . . Terminal Hacks 2 | . 2 . . . . . Record 2 | . 2 . . . . . Fabricator Hacks . | . . . . . . . Repair Station Hacks 2 | . . . 2 . . . Scan Component 1 | . . . 1 . . . Repair 1 | . . . 1 . . . Recycling Unit Hacks . | . . . . . . . Scanalyzer . | . . . . . . . Garrison Access Hacks . | . . . . . . . Unauthorized Hacks . | . . . . . . . Terminals . | . . . . . . . Fabricators . | . . . . . . . Repair Stations . | . . . . . . . Recycling Units . | . . . . . . . Scanalyzers . | . . . . . . . Garrison Access . | . . . . . . . Data Cores Recovered . | . . . . . . . Used . | . . . . . . . Hacking Detections 4 | . 2 . 2 . . . Full Trace Events . | . . . . . . . Feedback Events . | . . . . . . . Feedback Blocked . | . . . . . . . Robot Schematics Acquired 3 | . . . . . 3 . Robots Built . | . . . . . . . Authchips . | . . . . . . . Time . | . . . . . . . Total Robot Build Rating . | . . . . . . . Part Schematics Acquired 15 | . . . . . 15 . Parts Built . | . . . . . . . Authchips . | . . . . . . . Time . | . . . . . . . Total Part Build Rating . | . . . . . . . Parts Repaired 1 | . . . 1 . . . Time 26 | . . . 26 . . . Parts Recycled . | . . . . . . . Recycled Matter . | . . . . . . . Retrieved Matter . | . . . . . . . Retrieved Components . | . . . . . . . Parts Scanalyzed . | . . . . . . . Part Schematics Acquired . | . . . . . . . Parts Damaged . | . . . . . . . Bothacking | -11 -10 -10 -9 -9 -7 -6 ------------ Run | Jun Mat Min Mat Min Zio Pro Used RIF Installer . | . . . . . . . Robots Hacked 1 | . . . 1 . . . Non-combat . | . . . . . . . Combat 1 | . . . 1 . . . Robot Hacks Applied 1 | . . . 1 . . . parse_system 1 | . . . 1 . . . Relay Couplers Released . | . . . . . . . Fabnet Peak Effective % . | . . . . . . . Robots Rewired . | . . . . . . . Allies Hacked . | . . . . . . . Hacks Repelled . | . . . . . . . Allies | -11 -10 -10 -9 -9 -7 -6 -------- Run | Jun Mat Min Mat Min Zio Pro Total Allies 4 | . . . . . 4 . Largest Group 4 | . . . . . 4 4 Highest-Rated Group 151 | . . . . . 151 151 Highest-Rated Ally 39 | . . . . . 39 39 Total Orders . | . . . . . . . Ally Attacks 39 | . . . . . . 39 Total Damage 710 | . . . . . . 710 Kills 8 | . . . . . . 8 Allies Corrupted . | . . . . . . . Allies Melted . | . . . . . . . Intel | -11 -10 -10 -9 -9 -7 -6 ------- Run | Jun Mat Min Mat Min Zio Pro Robot Analysis Total . | . . . . . . . Derelict Logs Recovered 3 | . . . . . . 3 Drone Launches . | . . . . . . . Drone Recoveries . | . . . . . . . Exploration | -11 -10 -10 -9 -9 -7 -6 ------------- Run | Jun Mat Min Mat Min Zio Pro Turns Passed 5177 | 60 324 432 528 104 2829 900 Spaces Moved 2996 | 48 251 327 335 68 1530 437 Core 10 | 10 . . . . . . Treads . | . . . . . . . Legs 2837 | 38 122 307 335 68 1530 437 Wheels 149 | . 129 20 . . . . Hover . | . . . . . . . Flight . | . . . . . . . Fastest Speed 50 | 50 100 100 120 120 120 190 Average Speed 154 | 105 109 118 120 120 169 190 Slowest Speed 260 | 120 120 120 120 120 190 260 Overloaded Moves . | . . . . . . . Propulsion Burnouts . | . . . . . . . Robots Hopped . | . . . . . . . Cave-ins Triggered . | . . . . . . . Exploration Rate (%) 41 | 3 51 47 21 16 89 61 Regions Visited 6 Branch Regions 4 Pre-discovered Areas 1 | . . . . . . 1 Known Exits Taken 4 | . 1 1 1 1 . . Unknown Exits Taken 2 | 1 . . . . 1 . Scrap Searched 5 | . . 1 . . 3 1 Spaces Dug . | . . . . . . . Terrain Destroyed . | . . . . . . . Melee . | . . . . . . . Projectile . | . . . . . . . AOE . | . . . . . . . Terrain Rammed . | . . . . . . . Walls Destroyed . | . . . . . . . Machines Disabled . | . . . . . . . Actions | -11 -10 -10 -9 -9 -7 -6 --------- Run | Jun Mat Min Mat Min Zio Pro Total 3485 | 55 291 366 441 90 1766 476 Wait 389 | . 27 29 67 21 223 22 Move 2991 | 47 251 326 334 67 1529 437 Hop . | . . . . . . . Pick Up 10 | 3 1 2 1 1 2 . Fast Attach 18 | 5 3 . 7 . 3 . Attach 4 | . . 2 2 . . . Detach 6 | . 1 . 3 . 2 . Swap 7 | . 3 1 . 1 2 . Drop 12 | . . 3 4 . 5 . Fire 30 | . 3 3 19 . . 5 Melee 16 | . . . 4 . . 12 Ram 2 | . 2 . . . . . Kick . | . . . . . . . Crush . | . . . . . . . Escape Stasis . | . . . . . . . Rewire . | . . . . . . . Trap . | . . . . . . . Miscellaneous . | . . . . . . . Route ------- -11/Junkyard -10/Materials (discovered 3 exits: *Mat x2 / *Min) -10/Mines (discovered 2 exits: *Mat x2) -9/Materials -9/Mines (discovered 2 exits: *Mat / *Zio) -7/Zion -6/Proximity Caves History --------- Turn | Location | Event 3 | -11/Junkyard | Discovered new exit (range 16) 61 | -11/Junkyard | Entered Materials 88 | -10/Materials | Discovered new exit (range 16) 310 | -10/Materials | Discovered new exit (range 8) 317 | -10/Materials | Build established: Mutant 365 | -10/Materials | Discovered new exit (range 11) 383 | -10/Materials | Identified exit to Mines 385 | -10/Materials | Entered Mines 423 | -10/Mines | Discovered new exit (range 6) 426 | -10/Mines | Assembled infested the area 426 | -10/Mines | Received a Rocket Launcher from a helpful Derelict 782 | -10/Mines | Discovered new exit (range 7) 813 | -10/Mines | Identified exit to Materials 817 | -10/Mines | Entered Materials 817 | -9/Materials | Evolved 2 slots: Utility x2 865 | -9/Materials | Repaired Lrg. Battery 1290 | -9/Materials | Discovered new exit (range 14) 1341 | -9/Materials | Identified exit to Mines 1345 | -9/Materials | Entered Mines 1363 | -9/Mines | YI-UF0 nonchalantly dropped a Grenade Launcher on the ground 1410 | -9/Mines | Discovered new exit (range 10) 1419 | -9/Mines | Identified exit to Materials 1442 | -9/Mines | A Derelict revealed a hidden shortcut to a safe place 1448 | -9/Mines | Identified exit to Zion 1449 | -9/Mines | Entered Zion 1907 | -7/Zion | Found CR-A16's Pointy Stick 2562 | -7/Zion | Imprinted 2564 | -7/Zion | Declared Zion's savior 4112 | -7/Zion | Discovered new exit (range 14) 4175 | -7/Zion | Given A8's code to call for help 4278 | -7/Zion | Entered Proximity Caves 4278 | -6/Proximity Caves | Accompanied by 4 allies 4919 | -6/Proximity Caves | Learned Factory emergency access door positions 5059 | -6/Proximity Caves | Learned Factory emergency access door positions 5147 | -6/Proximity Caves | Attracted the attention of an 0b10 outpost 5172 | -6/Proximity Caves | Core integrity fell below 50% 5177 | -6/Proximity Caves | Core integrity fell below 20% 5178 | -6/Proximity Caves | Destroyed by L-41 Fighter with Axe Last Messages --------------- 05004_ 63-R6V(M) destroyed. 05012_ S-27 Virus heat short circuits Lgt. Nuclear Core. 05012_ S-27 Virus destroyed. 05059_ Acquired derelict log, extracted data. Data stored: Factory emergency access points. 05070_ Acquired derelict log, extracted data. World map updated: -7/Factory. 05146_ Aluminum Leg destroyed. 05147_ Y-64 Sentinel: "DETECTED UNIDENTIFIED DERELICT." 05151_ Y-64 Sentinel: "REQUESTING BACKUP." 05156_ Imp. Ion Engine destroyed. 05160_ Slug penetrates 0X-OXD(M). 05162_ Imp. Light Armor Plating destroyed. 05162_ Aluminum Leg destroyed. 05163_ Slug penetrates 0X-OXD(M). 05169_ Hvy. Beamcaster destroyed. 05171_ Slug penetrates 0X-OXD(M). 05172_ Lrg. Battery destroyed. 05173_ 0X-OXD(M) destroyed. 05175_ Imp. Heat Sink destroyed. Map ----- +----------------------------------------------------+ | ??## ##????????????????????????????????????????? | | ?## ##?????????????????????????????????????????? | | ## #??????????????????????????????????????????? | | # #??????????????????????????????????????????? | | ### ???????????????????????????????????? | | ##?????????????????????????????????????? | | #?????????????????????????????????????? | | #####?????????????????????????????????????? | | #?????????????????????????????????????????? | | ##????????????????? ??????????????????????? | | ##????????????????? ??????????????????????? | | # ###??????????######?? #?????????????????????? | | # ##????????????# ##?? ?????????????????????? | | ###??##?????????# #?? ##???????????????????? | | ## ##???????## ##? ##??????????????????? | | #???????# ## ####????? ?????????? | | #???????#### # ##??? ?????????? | | #????#### ## ### ??????????? | | ##???## #? #???????????? | | ####????# #####? ##??????????? | | ##??????## #????? ##?????????? | | ? ##?????# ##???? ###???????? | | ? ???# ####?# #???????? | | # ????# =### #???????? | | ???# ### ## % Yl #??????????? | | #???# ???# ## [ @## ## #???????????? | | #???###????# ## ll#? #???????????????? | | #?????????## ## s #?? #???????????????? | | #?????????# ### s#??//###???????????????? | | #??????##### #### /??? ?????????????????? | | #???????# #### ##### #??? ????????????????? | | #???????## ### ##?## #????""#???????????????? | | ######### ### #??# #????###???????????????? | | ### #??# ??????????????????????? | | ## #???###?????????????????????? | | ## #### ## #???????????????????????????? | | ## #??# ##???????????????????????????? | | ### #?# ### ##????????????????????????????? | | #?# ## ##?## ####?????????????????????????????? | | ??# ##???####????????????????????????????????? | | ??# #?????????????????????????????????????????? | | ??#####??????????????????????????????????????????? | | ?????????????????????????????????????????????????? | | ?????????????????????????????????????????????????? | | ?????????????????????????????????????????????????? | | ?????????????????????????????????????????????????? | | ?????????????????????????????????????????????????? | | ?????????????????????????????????????????????????? | | ?????????????????????????????????????????????????? | | ?????????????????????????????????????????????????? | +----------------------------------------------------+ Best States ------------- Heat Dissipation 42 Energy Generation 12 Energy Capacity 465 Matter Stores 300 Matter Capacity 300 Sight Range 16 Robot Scan Range 14 Terrain Scan Density 10 Additional Mass Support 6 Corruption Block 7 Armor Coverage 150 Evasion (%) 55 Item Schematics ----------------- Nuclear Pulse Thruster | -7/Zion | Archive Energy Filter | -7/Zion | Archive Adv. Heat Sink | -7/Zion | Archive Hvy. Ion Cannon | -7/Zion | Archive Imp. Target Analyzer | -7/Zion | Archive Shock Absorption System | -7/Zion | Archive Hvy. Beamcaster | -7/Zion | Archive Variable Charge Gun | -7/Zion | Archive Hvy. Missile Launcher | -7/Zion | Archive Imp. Reaction Control System | -7/Zion | Archive Matter Compressor | -7/Zion | Archive Kinecellerator | -7/Zion | Archive Imp. Melee Analysis Suite | -7/Zion | Archive 0b10 Decoder Chip [Scout] | -7/Zion | Archive Gauss Cannon | -7/Zion | Archive Robot Schematics ------------------ L-41 Fighter | -7/Zion | Archive K-01 Serf | -7/Zion | Archive S-27 Virus | -7/Zion | Archive Fabricated ------------ Nothing Alien Tech Used ----------------- None Achievements -------------- Robot Respite The One Challenges ------------ None Game ------ Seed StasisPointyMatter Manual? 0 Play Time 00:33:40 Cumulative 22.3 hours Start 2023.04.26 @ 22:12:02 End 2023.04.27 @ 00:02:43 Sessions 3 Manual Loads 0 Difficulty Rogue Special Mode None Game No. 82 Rogue 46 Adventurer 36 Explorer 0 Win Type - Total 0 Types 0/0/0/0/0/0/0/0/0 Lore% 18 Gallery% 22 Achievement% 16 Wizard Run 0 Options --------- ASCII 0 Keyboard 1 Movement Numpad Keybinds 0 Fullscreen 2 Font 18/X11Bold Map View 76x50 Tactical HUD 1 Map Filters NONE Filters NONE Steam 1 RUN: 2aa71d11-40f8-41b8-9b34-1eb75a36c753